bitfinex/quotes_SOLUSD_20250307
["timestamp","ask_amount","ask_price","bid_price","bid_amount"]
[1741366731464,124.65162149,142.42,142.37,0.033]
[1741366731670,43.15162149,142.41,142.37,0.033]
[1741366731975,43.15162149,142.41,142.37,7.0568]
[1741366732463,81.5,142.42,142.37,7.0568]
[1741366732670,43.15162149,142.39,142.37,0.033]
[1741366732846,7.0215,142.42,142.37,0.033]
[1741366732847,143.58559349,142.38,142.37,0.033]
[1741366733167,18.933972,142.37,142.36,0.033]
[1741366733494,62.08559349,142.37,142.36,0.033]
[1741366733650,69.10949349,142.37,142.36,0.033]
[1741366734071,18.933972,142.37,142.36,0.033]
[1741366734369,62.08559349,142.37,142.36,0.033]
[1741366734562,69.10949349,142.37,142.36,0.033]
[1741366735071,62.08559349,142.37,142.36,0.033]
[1741366735764,43.15162149,142.37,142.36,0.033]
[1741366735944,53.97802149,142.38,142.36,0.033]
[1741366736146,43.15162149,142.37,142.36,0.033]
[1741366736758,1.6664,142.38,142.36,0.033]
[1741366736944,52.31162149,142.42,142.36,43.18462149]
[1741366737271,81.5,142.41,142.37,43.15162149]
[1741366737479,81.5,142.41,142.36,43.18462149]
[1741366737856,81.5,142.41,142.37,50.17552149]
[1741366738062,81.5,142.41,142.38,43.15162149]
[1741366738275,81.5,142.41,142.37,67.73532149]
[1741366738648,81.5,142.41,142.38,43.15162149]
[1741366738947,81.5,142.41,142.37,67.73532149]
[1741366739146,81.5,142.41,142.37,67.76832149]
[1741366742380,43.15162149,142.38,142.37,0.033]
[1741366742588,105.23721498,142.38,142.37,0.033]
[1741366742881,62.08559349,142.38,142.37,0.033]
[1741366743282,43.15162149,142.39,142.37,0.033]
[1741366743659,1.6214,142.43,142.37,7.0568]
[1741366743995,1.6214,142.43,142.38,43.15162149]
[1741366744351,1.6214,142.43,142.37,7.0568]
[1741366744352,44.77302149,142.43,142.37,7.0568]
[1741366744688,43.15162149,142.42,142.37,7.0568]
[1741366744899,43.15162149,142.41,142.37,0.033]
[1741366745193,43.15162149,142.42,142.37,7.0568]
[1741366745368,44.77302149,142.43,142.37,50.20842149]
[1741366745571,1.6214,142.43,142.38,43.15162149]
[1741366745769,43.15162149,142.41,142.37,0.033]
[1741366745996,1.6214,142.43,142.38,43.15162149]
[1741366746193,1.6214,142.43,142.37,0.033]
[1741366746402,18.933972,142.42,142.37,0.033]
[1741366746569,44.77302149,142.43,142.37,43.18462149]
[1741366746896,1.6214,142.43,142.38,43.15162149]
[1741366747595,81.5,142.43,142.39,43.15162149]
[1741366747894,81.5,142.43,142.42,50.17302149]
[1741366748090,81.5,142.46,142.42,50.17302149]
[1741366748393,124.65162149,142.46,142.38,7.0234]
[1741366748563,81.5,142.45,142.4,43.15162149]
[1741366749182,81.5,142.44,142.4,43.15162149]
[1741366749468,81.5,142.44,142.38,24.582]
[1741366749674,81.5,142.43,142.38,7.0234]
[1741366749876,88.5218,142.42,142.37,0.033]
[1741366750099,43.15162149,142.4,142.37,0.033]
[1741366750270,62.08559349,142.38,142.37,0.033]
[1741366750471,63.64379349,142.38,142.37,0.033]
[1741366751113,20.492172,142.38,142.37,0.033]
[1741366751395,6.5985,142.4,142.37,0.033]
[1741366751977,13.6211,142.4,142.37,0.033]
[1741366752191,6.5985,142.4,142.37,0.033]
[1741366752575,43.15162149,142.38,142.37,0.033]
[1741366752789,62.08559349,142.38,142.37,0.033]
[1741366753475,18.933972,142.38,142.37,0.033]
[1741366754111,18.933972,142.39,142.37,0.033]
[1741366754277,6.5985,142.4,142.37,0.033]
[1741366754472,1.6582,142.42,142.37,43.18462149]
[1741366754695,61.80127035,142.41,142.37,0.033]
[1741366755001,0.28432314,142.4,142.37,0.033]
[1741366755785,133.33132149,142.42,142.37,0.033]
[1741366756197,83.1582,142.42,142.37,0.033]
[1741366756406,83.1582,142.42,142.38,43.15162149]
[1741366756581,81.5,142.42,142.38,43.15162149]
[1741366756989,81.5,142.42,142.39,43.15162149]
[1741366758287,81.5,142.42,142.39,7.0226]
[1741366758485,9.14,142.45,142.4,43.15162149]
[1741366758688,81.5,142.48,142.39,24.58]
[1741366758689,81.5,142.46,142.39,24.58]
[1741366758882,81.5,142.45,142.42,43.15162149]
[1741366759305,81.5,142.45,142.41,43.15162149]
[1741366759797,81.5,142.45,142.43,43.15162149]
[1741366760377,81.5,142.45,142.44,50.17202149]
[1741366760676,0.03,142.49,142.44,67.72322149]
[1741366760877,0.03,142.49,142.46,43.15162149]
[1741366761103,0.03,142.49,142.47,43.15162149]
[1741366761288,0.03,142.49,142.46,43.15162149]
[1741366761679,0.03,142.49,142.44,24.5716]
[1741366761902,0.03,142.49,142.47,43.15162149]
[1741366762486,0.03,142.49,142.47,50.17032149]
[1741366763289,0.03,142.49,142.48,43.15162149]
[1741366763985,0.03,142.49,142.47,50.17032149]
[1741366764511,0.03,142.49,142.48,43.15162149]
[1741366766490,0.03,142.49,142.48,35.76238535]
[1741366766878,0.03,142.49,142.48,7.0185]
[1741366767190,0.03,142.49,142.48,35.76238535]
[1741366768801,0.03,142.5,142.48,35.76238535]
[1741366768988,0.03,142.5,142.49,28.74388535]
[1741366770509,0.03,142.5,142.49,35.76188535]
[1741366771713,81.5,142.54,142.49,53.30688535]
[1741366771916,81.5,142.56,142.53,28.74388535]
[1741366772088,81.5,142.56,142.49,24.563]
[1741366772289,81.53,142.6,142.5,6.0753]
[1741366772604,0.03,142.6,142.51,211.6048]
[1741366772799,0.03,142.6,142.52,23.52317248]
[1741366772986,7.0393,142.67,142.54,18.933972]
[1741366772987,81.53,142.65,142.54,18.933972]
[1741366773191,81.53,142.65,142.55,2.0]
[1741366773418,0.03,142.65,142.56,18.933972]
[1741366773607,0.03,142.65,142.64,28.74388535]
[1741366773786,0.03,142.65,142.57,153.3778]
[1741366773990,0.03,142.65,142.64,28.74388535]
[1741366774493,0.03,142.65,142.64,35.75448535]
[1741366775595,0.03,142.65,142.64,28.74388535]
[1741366775993,0.03,142.65,142.64,35.75448535]
[1741366776398,0.03,142.65,142.64,28.74388535]
[1741366776618,0.03,142.65,142.64,43.02814755]
[1741366777395,0.03,142.65,142.59,43.02814755]
[1741366777615,0.03,142.65,142.64,43.02814755]
[1741366778546,0.03,142.65,142.64,355.02814755]
[1741366778819,0.03,142.65,142.64,50.03874755]
[1741366779127,0.03,142.65,142.63,43.02814755]
[1741366779718,0.03,142.65,142.64,43.02814755]
[1741366780613,0.03,142.65,142.64,50.03874755]
[1741366781502,0.03,142.67,142.64,93.0668951]
[1741366781825,0.03,142.72,142.69,43.02814755]
[1741366782003,0.03,142.72,142.71,43.02814755]
[1741366782714,0.03,142.72,142.7,43.02814755]
[1741366782914,0.03,142.72,142.68,43.02814755]
[1741366783125,81.5,142.71,142.65,7.0101]
[1741366783426,43.34247069,142.72,142.64,201.85864755]
[1741366783427,143.17779641,142.7,142.64,201.85864755]
[1741366783627,143.17779641,142.7,142.64,194.84814755]
[1741366783806,0.28432314,142.69,142.64,194.84814755]
[1741366784128,100.14964886,142.7,142.65,43.02814755]
[1741366784306,0.03,142.72,142.64,176.3572]
[1741366784624,0.03,142.72,142.71,50.03534755]
[1741366785526,0.0001,142.72,142.71,93.0634951]
[1741366786128,1.9779584,142.77,142.71,233.04781824]
[1741366786308,1.9779584,142.77,142.76,43.02814755]
[1741366786703,1.9779584,142.77,142.76,50.03284755]
[1741366786903,20.62760726,142.77,142.76,43.02814755]
[1741366787103,20.62760726,142.77,142.76,50.03284755]
[1741366787305,1.9779584,142.77,142.76,50.03284755]
[1741366787626,0.03,142.82,142.77,0.28432314]
[1741366787928,0.03,142.82,142.81,43.02814755]
[1741366788712,0.03,142.82,142.81,50.03044755]
[1741366789119,0.03,142.82,142.81,43.02814755]
[1741366789310,0.03,142.82,142.81,50.03044755]
[1741366790032,0.03,142.82,142.81,43.02814755]
[1741366790214,0.03,142.82,142.81,50.03044755]
[1741366790825,0.03,142.82,142.77,143.9596]
[1741366791024,0.03,142.82,142.81,43.02814755]
[1741366792123,0.03,142.82,142.79,43.02814755]
[1741366792631,0.03,142.82,142.76,158.7447]
[1741366792632,0.03,142.82,142.78,43.02814755]
[1741366792811,100.14964886,142.81,142.76,194.76814755]
[1741366793224,63.21899641,142.79,142.67,308.5014]
[1741366793553,18.64964886,142.77,142.71,43.02814755]
[1741366793736,18.64964886,142.75,142.67,158.669]
[1741366793905,18.64964886,142.75,142.7,43.02814755]
[1741366794826,25.65504886,142.75,142.7,43.02814755]
[1741366795422,25.65504886,142.75,142.71,43.02814755]
[1741366795639,25.65504886,142.75,142.7,43.02814755]
[1741366795935,18.64964886,142.73,142.62,16.12499159]
[1741366796231,18.933972,142.71,142.65,43.02814755]
[1741366796433,63.47881955,142.69,142.62,43.02814755]
[1741366796641,18.64964886,142.67,142.61,43.02814755]
[1741366797112,25.943172,142.67,142.62,43.02814755]
[1741366798029,18.933972,142.67,142.62,43.02814755]
[1741366798242,18.933972,142.67,142.58,7.0136]
[1741366798552,18.64964886,142.67,142.66,43.02814755]
[1741366798718,18.64964886,142.67,142.65,43.02814755]
[1741366798923,18.64964886,142.67,142.64,43.02814755]
[1741366799126,18.64964886,142.72,142.66,43.02814755]
[1741366799319,18.64964886,142.72,142.69,43.02814755]
[1741366799909,0.28432314,142.71,142.68,43.02814755]
[1741366800410,81.5,142.71,142.66,43.02814755]
[1741366800626,18.64964886,142.72,142.62,137.733]
[1741366800947,0.28432314,142.71,142.62,24.5736]
[1741366801115,0.28432314,142.71,142.67,43.02814755]
[1741366801637,0.28432314,142.71,142.66,43.02814755]
[1741366802136,0.28432314,142.71,142.67,43.02814755]
[1741366802529,18.933972,142.69,142.65,43.02814755]
[1741366802725,1.5843,142.65,142.62,0.033]
[1741366803039,68.97321955,142.63,142.62,0.033]
[1741366803241,18.933972,142.63,142.62,0.033]
[1741366803558,25.945072,142.63,142.62,0.033]
[1741366803718,68.97321955,142.63,142.62,0.033]
[1741366804047,18.933972,142.6,142.53,43.02814755]
[1741366804338,18.64964886,142.61,142.57,43.02814755]
[1741366804540,18.64964886,142.59,142.49,25.61525047]
[1741366804746,18.64964886,142.57,142.52,43.02814755]
[1741366804972,18.64964886,142.55,142.52,43.02814755]
[1741366805170,18.64964886,142.55,142.53,43.02814755]
[1741366805380,6.5248,142.58,142.54,43.02814755]
[1741366805381,18.64964886,142.57,142.54,43.02814755]
[1741366806064,124.52814755,142.61,142.51,7.017]
[1741366806065,18.64964886,142.6,142.56,43.02814755]
[1741366806366,6.6532,142.64,142.59,43.02814755]
[1741366806548,18.64964886,142.63,142.62,43.02814755]
[1741366806750,9.08,142.66,142.62,43.02814755]
[1741366806973,9.08,142.66,142.64,50.03834755]
[1741366807152,1.5202,142.7,142.65,43.02814755]
[1741366807464,15.6675,142.73,142.69,43.02814755]
[1741366807673,1.607,142.76,142.72,43.02814755]
[1741366807970,81.53,142.77,142.66,43.02814755]
[1741366807971,0.03,142.77,142.74,43.02814755]
[1741366808270,0.03,142.77,142.67,152.81080826]
[1741366808446,0.03,142.77,142.75,43.02814755]
[1741366808845,0.03,142.77,142.68,0.28432314]
[1741366809152,0.03,142.77,142.69,7.0081]
[1741366809359,43.02814755,142.76,142.7,43.02814755]
[1741366809667,0.03,142.77,142.75,43.02814755]
[1741366809967,0.03,142.77,142.73,43.02814755]
[1741366810165,0.03,142.77,142.76,43.02814755]
[1741366810366,0.03,142.77,142.69,144.7081]
[1741366810571,0.03,142.77,142.73,43.02814755]
[1741366810945,18.933972,142.75,142.7,43.02814755]
[1741366811145,18.64964886,142.75,142.67,151.76]
[1741366811349,0.03,142.77,142.74,43.02814755]
[1741366811548,0.03,142.77,142.76,43.02814755]
[1741366811765,0.03,142.77,142.68,163.28115253]
[1741366811766,0.03,142.77,142.75,43.02814755]
[1741366812355,0.03,142.77,142.73,43.02814755]
[1741366812566,18.933972,142.75,142.67,151.76]
[1741366812754,18.64964886,142.73,142.68,43.02814755]
[1741366813075,18.64964886,142.73,142.67,194.78814755]
[1741366813279,18.64964886,142.75,142.71,43.02814755]
[1741366813577,18.64964886,142.75,142.67,158.7691]
[1741366813748,0.28432314,142.74,142.69,43.02814755]
[1741366813956,18.64964886,142.72,142.67,194.78814755]
[1741366814149,100.14964886,142.72,142.68,43.02814755]
[1741366814672,100.14964886,142.72,142.69,43.02814755]
[1741366814876,100.14964886,142.72,142.67,194.78814755]
[1741366815560,100.14964886,142.72,142.68,43.02814755]
[1741366815757,100.14964886,142.72,142.67,158.7691]
[1741366815758,18.64964886,142.73,142.67,151.76]
[1741366815968,18.64964886,142.73,142.69,43.02814755]
[1741366816353,18.64964886,142.73,142.7,43.02814755]
[1741366816855,18.64964886,142.73,142.71,43.02814755]
[1741366817166,61.67779641,142.73,142.67,194.78814755]
[1741366817360,18.64964886,142.71,142.67,151.76]
[1741366817557,18.64964886,142.71,142.69,43.02814755]
[1741366817757,18.64964886,142.71,142.7,43.02814755]
[1741366818079,18.64964886,142.71,142.67,158.769]
[1741366818265,0.03,142.77,142.7,43.02814755]
[1741366818465,18.64964886,142.76,142.72,43.02814755]
[1741366818660,18.64964886,142.76,142.71,43.02814755]
[1741366818874,100.14964886,142.76,142.72,43.02814755]
[1741366819283,107.15444886,142.76,142.71,43.02814755]
[1741366819454,107.15444886,142.76,142.7,43.02814755]
[1741366819657,0.28432314,142.75,142.69,43.02814755]
[1741366819952,0.28432314,142.73,142.67,194.78814755]
[1741366820162,18.64964886,142.71,142.7,43.02814755]
[1741366820384,18.64964886,142.74,142.7,43.02814755]
[1741366820751,0.28432314,142.73,142.69,43.02814755]
[1741366820948,18.64964886,142.74,142.69,43.02814755]
[1741366821271,18.64964886,142.76,142.73,43.02814755]
[1741366821580,0.03,142.77,142.75,43.02814755]
[1741366821879,0.03,142.77,142.76,43.02814755]
[1741366822367,0.0001,142.77,142.76,43.02814755]
[1741366822763,0.0001,142.77,142.76,355.02814755]
[1741366823267,0.0001,142.77,142.76,362.03284755]
[1741366823649,0.0001,142.77,142.76,50.03284755]
[1741366824072,0.0001,142.77,142.75,50.03324755]
[1741366824257,0.0001,142.77,142.76,43.02814755]
[1741366824461,0.03,142.82,142.76,43.02814755]
[1741366824671,0.03,142.82,142.8,43.02814755]
[1741366824862,0.03,142.82,142.75,7.0051]
[1741366825177,25.65244886,142.8,142.75,43.02814755]
[1741366825378,18.64964886,142.8,142.75,43.02814755]
[1741366825556,68.68069641,142.8,142.74,43.02814755]
[1741366825754,25.65244886,142.8,142.75,43.02814755]
[1741366825981,18.64964886,142.8,142.75,43.02814755]
[1741366826354,0.28432314,142.79,142.74,43.02814755]
[1741366826551,18.64964886,142.77,142.73,43.02814755]
[1741366826953,18.64964886,142.77,142.69,24.5285]
[1741366827175,18.64964886,142.77,142.73,43.02814755]
[1741366827377,18.64964886,142.77,142.72,7.0066]
[1741366827378,18.64964886,142.77,142.75,43.02814755]
[1741366827775,81.5,142.78,142.75,43.02814755]
[1741366827962,0.03,142.82,142.77,43.02814755]
[1741366828163,0.03,142.82,142.81,43.02814755]
[1741366828367,0.03,142.82,142.73,180.72814755]
[1741366828576,18.67964886,142.82,142.79,43.02814755]
[1741366828761,18.67964886,142.82,142.73,180.72814755]
[1741366829173,18.67964886,142.82,142.8,43.02814755]
[1741366829373,0.03,142.82,142.81,43.02814755]
[1741366831585,0.03,142.82,142.81,50.03044755]
[1741366831884,18.67964886,142.82,142.78,7.0036]
[1741366832283,0.03,142.82,142.81,43.02814755]
[1741366833177,0.0001,142.82,142.81,43.02814755]
[1741366833597,0.0001,142.82,142.81,50.03044755]
[1741366834884,0.0001,142.82,142.81,362.03044755]
[1741366835095,0.0001,142.82,142.76,137.7]
[1741366835308,0.0001,142.82,142.77,7.0042]
[1741366835596,0.0001,142.82,142.81,43.02814755]
[1741366835789,0.0001,142.82,142.81,50.03044755]
[1741366838622,0.03,142.87,142.81,102.83197069]
[1741366838805,0.03,142.87,142.86,43.02814755]
[1741366839303,0.03,142.88,142.86,43.02814755]
[1741366839465,0.03,142.88,142.87,43.02814755]
[1741366839667,0.03,142.92,142.87,86.0562951]
[1741366839866,0.03,142.92,142.91,43.02814755]
[1741366840275,0.0001,142.92,142.91,93.0536951]
[1741366840471,0.03,142.97,142.92,0.28432314]
[1741366840672,0.03,142.97,142.96,43.02814755]
[1741366841296,0.03,143.01,142.96,43.02814755]
[1741366841469,0.03,143.01,142.96,137.7]
[1741366841675,0.03,143.01,142.97,312.0]
[1741366842173,0.03,143.01,143.0,43.02814755]
[1741366842809,0.03,143.01,143.0,50.02114755]
[1741366842998,0.03,143.01,143.0,43.02814755]
[1741366843624,0.03,143.01,143.0,93.0492951]
[1741366843918,1.9779584,143.06,143.04,43.02814755]
[1741366844318,1.9779584,143.06,143.04,187.71914755]
[1741366845195,0.03,143.11,143.05,0.28432314]
[1741366845402,0.03,143.11,143.1,43.02814755]
[1741366846595,0.03,143.11,143.1,50.01624755]
[1741366846903,0.03,143.11,143.1,362.01624755]
[1741366847807,0.03,143.11,143.1,355.02814755]
[1741366848009,0.03,143.11,143.1,43.02814755]
[1741366848923,8.5539,143.24,143.11,0.28432314]
[1741366849109,6.575,143.26,143.13,20.933972]
[1741366849311,1.6023,143.31,143.16,20.933972]
[1741366849504,1.6023,143.31,143.18,18.933972]
[1741366849820,8.9538584,143.35,143.3,43.02814755]
[1741366850024,1.9779584,143.35,143.32,43.02814755]
[1741366850322,1.9779584,143.35,143.34,43.02814755]
[1741366850624,18.933972,143.34,143.27,43.02814755]
[1741366850928,18.64964886,143.32,143.24,312.0]
[1741366851110,18.64964886,143.32,143.27,43.02814755]
[1741366851421,43.02814755,143.32,143.22,43.02814755]
[1741366851725,0.28432314,143.26,143.18,6.9841]
[1741366852026,18.64964886,143.27,143.22,43.02814755]
[1741366852202,0.28432314,143.26,143.22,43.02814755]
[1741366852918,18.64964886,143.27,143.25,43.02814755]
[1741366853120,18.64964886,143.3,143.26,43.02814755]
[1741366853327,94.9563,143.34,143.29,43.02814755]
[1741366853528,18.64964886,143.33,143.31,43.02814755]
[1741366853835,1.9779584,143.35,143.32,43.02814755]
[1741366854127,1.9779584,143.35,143.34,43.02814755]
[1741366855026,20.62760726,143.35,143.29,194.32814755]
[1741366855224,18.64964886,143.34,143.3,43.02814755]
[1741366855697,0.28432314,143.33,143.29,151.3]
[1741366855902,18.933972,143.33,143.29,151.3]
[1741366856201,18.64964886,143.31,143.2,151.3]
[1741366856401,0.28432314,143.29,143.2,289.0]
[1741366856633,18.933972,143.27,143.2,151.3]
[1741366856806,18.64964886,143.28,143.24,43.02814755]
[1741366857007,0.28432314,143.27,143.2,151.3]
[1741366857221,0.28432314,143.27,143.23,43.02814755]
[1741366857796,18.64964886,143.28,143.25,43.02814755]
[1741366858700,6.9803,143.26,143.22,43.02814755]
[1741366858908,0.28432314,143.24,143.2,194.32814755]
[1741366859107,0.28432314,143.24,143.2,151.3]
[1741366859316,18.64964886,143.25,143.22,43.02814755]
[1741366859495,0.28432314,143.24,143.2,151.3]
[1741366859695,18.64964886,143.25,143.2,151.3]
[1741366859903,18.64964886,143.25,143.2,158.2832]
[1741366860119,18.64964886,143.25,143.21,43.02814755]
[1741366860326,0.28432314,143.24,143.2,151.3]
[1741366860528,18.64964886,143.23,143.16,43.02814755]
[1741366860828,18.64964886,143.21,143.14,43.02814755]
[1741366861002,61.67779641,143.19,143.12,43.02814755]
[1741366861200,18.933972,143.17,143.11,151.2]
[1741366861406,43.02814755,143.13,143.06,0.033]
[1741366861601,18.79181043,143.1,143.06,0.033]
[1741366861817,0.14216157,143.09,143.06,0.033]
[1741366862124,18.64964886,143.1,143.08,43.02814755]
[1741366862631,18.64964886,143.07,143.06,0.033]
[1741366862921,61.96211955,143.07,143.06,0.033]
[1741366863130,0.28432314,143.06,142.94,50.02404755]
[1741366863428,18.64964886,143.02,142.97,43.02814755]
[1741366863725,0.28432314,143.01,142.96,43.02814755]
[1741366863927,18.64964886,143.02,142.97,43.02814755]
[1741366864220,0.28432314,143.01,142.97,43.02814755]
[1741366864401,0.28432314,143.01,142.96,43.02814755]
[1741366864599,0.28432314,143.01,142.93,158.2163]
[1741366864600,0.28432314,143.01,142.97,43.02814755]
[1741366864812,0.28432314,143.01,142.96,43.02814755]
[1741366865026,18.933972,143.01,142.96,43.02814755]
[1741366865232,18.64964886,142.98,142.93,151.22]
[1741366865541,18.64964886,142.98,142.93,194.24814755]
[1741366866013,15.2422,143.03,142.93,194.24814755]
[1741366866014,81.5,143.07,142.97,43.02814755]
[1741366866196,81.5,143.07,142.94,52.02814755]
[1741366866197,18.64964886,143.06,143.01,43.02814755]
[1741366866397,7.8166,143.11,143.02,43.02814755]
[1741366866620,43.02814755,143.1,143.04,43.02814755]
[1741366866825,18.933972,143.08,142.99,6.9932]
[1741366867025,0.28432314,143.05,142.95,6.9954]
[1741366867212,18.64964886,143.04,142.98,43.02814755]
[1741366867410,61.67779641,143.02,142.95,43.02814755]
[1741366867615,0.28432314,142.99,142.93,151.22]
[1741366867798,0.28432314,143.02,142.98,43.02814755]
[1741366868005,43.02814755,143.04,142.94,43.02814755]
[1741366868006,18.64964886,143.03,142.99,43.02814755]
[1741366868219,18.64964886,143.03,142.96,312.0]
[1741366868530,18.64964886,143.09,143.02,43.02814755]
[1741366868727,0.28432314,143.08,143.04,43.02814755]
[1741366869122,18.64964886,143.09,143.04,43.02814755]
[1741366869324,7.8166,143.11,143.05,43.02814755]
[1741366869623,7.8166,143.11,142.97,6.9944]
[1741366869624,18.64964886,143.08,142.97,6.9944]
[1741366869810,0.14216157,143.04,142.96,0.033]
[1741366870008,0.14216157,143.04,142.98,43.02814755]
[1741366870223,18.79181043,143.05,142.96,24.5151]
[1741366870398,18.64964886,143.05,143.02,43.02814755]
[1741366870603,18.933972,143.07,143.02,43.02814755]
[1741366870825,61.96211955,143.07,143.0,43.02814755]
[1741366871030,61.96211955,143.05,142.96,7.0279]
[1741366871233,18.64964886,143.01,142.96,43.06114755]
[1741366871435,18.933972,143.03,142.96,7.0279]
[1741366871734,18.933972,143.03,142.96,0.033]
[1741366871933,61.96211955,143.03,142.96,43.06114755]
[1741366872238,18.933972,143.03,142.97,43.02814755]
[1741366872535,2.0,142.95,142.82,137.7]
[1741366872838,18.64964886,142.9,142.85,43.02814755]
[1741366873006,18.64964886,142.9,142.83,43.02814755]
[1741366873007,18.64964886,142.88,142.83,43.02814755]
[1741366873521,18.64964886,142.88,142.85,43.02814755]
[1741366873724,18.64964886,142.88,142.84,43.02814755]
[1741366873945,18.64964886,142.88,142.82,43.02814755]
[1741366874305,18.64964886,142.88,142.85,43.02814755]
[1741366874527,18.64964886,142.88,142.81,28.2109]
[1741366874729,18.64964886,142.88,142.83,43.02814755]
[1741366874912,18.64964886,142.88,142.82,43.02814755]
[1741366875113,18.64964886,142.88,142.82,50.02984755]
[1741366875315,18.64964886,142.88,142.83,43.02814755]
[1741366875735,0.28432314,142.87,142.83,43.02814755]
[1741366876034,18.64964886,142.86,142.82,43.02814755]
[1741366876234,18.64964886,142.86,142.83,43.02814755]
[1741366876442,0.28432314,142.91,142.85,43.02814755]
[1741366876737,0.28432314,142.91,142.81,10.7052]
[1741366876738,43.02814755,142.88,142.82,43.02814755]
[1741366876938,18.64964886,142.87,142.85,43.02814755]
[1741366877439,18.64964886,142.87,142.86,43.02814755]
[1741366877629,18.933972,142.9,142.82,24.5063]
[1741366877937,18.64964886,142.91,142.86,43.02814755]
[1741366878134,18.64964886,142.89,142.82,24.5063]
[1741366878444,18.64964886,142.89,142.85,43.02814755]
[1741366878933,18.64964886,142.89,142.85,50.02794755]
[1741366879311,0.28432314,142.88,142.85,50.02794755]
[1741366879504,0.28432314,142.86,142.81,3.703]
[1741366879706,18.64964886,142.84,142.81,3.703]
[1741366879907,18.64964886,142.84,142.81,0.033]
[1741366880147,18.64964886,142.82,142.81,0.033]
[1741366880333,61.96211955,142.82,142.81,0.033]
[1741366880522,61.67779641,142.82,142.81,0.033]
[1741366880725,18.64964886,142.82,142.81,0.033]
[1741366880928,18.64964886,142.82,142.81,43.06114755]
[1741366881432,18.64964886,142.85,142.81,50.06344755]
[1741366881633,18.64964886,142.85,142.84,43.02814755]
[1741366881832,8.0336,142.91,142.84,43.02814755]
[1741366881833,18.64964886,142.9,142.84,43.02814755]
[1741366882227,0.28432314,142.89,142.84,43.02814755]
[1741366882427,18.64964886,142.88,142.82,43.02814755]
[1741366882625,0.28432314,142.85,142.81,7.0353]
[1741366882929,0.28432314,142.85,142.81,50.06324755]
[1741366883128,0.28432314,142.86,142.82,43.02814755]
[1741366883325,0.28432314,142.88,142.84,43.02814755]
[1741366883526,18.64964886,142.89,142.84,43.02814755]
[1741366883734,61.67779641,142.9,142.84,43.02814755]
[1741366884020,61.67779641,142.9,142.83,43.02814755]
[1741366884231,18.64964886,142.89,142.86,43.02814755]
[1741366884430,89.5336,142.91,142.81,59.5523]
[1741366884736,56.44514755,142.96,142.9,43.02814755]
[1741366884913,124.52814755,142.95,142.88,43.02814755]
[1741366885113,61.67779641,142.91,142.85,50.02844755]
[1741366885317,18.64964886,142.89,142.85,50.02844755]
[1741366885515,18.64964886,142.89,142.85,7.0003]
[1741366885744,18.64964886,142.89,142.88,43.02814755]
[1741366886037,0.28432314,142.9,142.85,50.02844755]
[1741366886243,18.64964886,142.88,142.84,362.02884755]
[1741366886443,18.64964886,142.88,142.82,17.5036]
[1741366886444,100.14964886,142.88,142.83,43.02814755]
[1741366886619,0.28432314,142.87,142.82,43.02814755]
[1741366886942,43.02814755,142.94,142.81,0.033]
[1741366886943,18.64964886,142.84,142.81,0.033]
[1741366887116,18.933972,142.85,142.81,0.033]
[1741366887323,18.64964886,142.85,142.82,43.02814755]
[1741366887643,0.28432314,142.84,142.81,0.033]
[1741366887817,18.64964886,142.82,142.81,0.033]
[1741366888018,0.28432314,142.78,142.68,7.0086]
[1741366888223,18.64964886,142.73,142.68,7.0086]
[1741366888435,18.64964886,142.71,142.67,0.033]
[1741366888657,18.64964886,142.71,142.69,43.02814755]
[1741366888825,18.64964886,142.71,142.67,7.042]
[1741366889142,18.64964886,142.71,142.68,43.02814755]
[1741366889336,18.64964886,142.71,142.69,43.02814755]
[1741366890521,18.64964886,142.71,142.67,43.06114755]
[1741366890838,18.64964886,142.71,142.68,43.02814755]
[1741366891017,81.5,142.78,142.7,43.02814755]
[1741366891218,18.64964886,142.77,142.72,43.02814755]
[1741366891444,43.02814755,142.79,142.68,7.0086]
[1741366891445,18.64964886,142.79,142.74,43.02814755]
[1741366891630,18.64964886,142.79,142.68,25.58114755]
[1741366891631,81.5,142.83,142.78,43.02814755]